fUST/lending_fUST_20241220
["ID","MTS","AMOUNT","RATE_DAILY","PERIOD"]
[346102959,1734706232616,-500.0,0.00021916,2]
[346102961,1734706232627,-500.0,0.00021916,2]
[346102963,1734706232636,-500.0,0.00021916,2]
[346102965,1734706232645,-500.0,0.00021916,2]
[346102967,1734706232656,-500.0,0.00021916,2]
[346102969,1734706232666,-500.0,0.00021916,2]
[346102971,1734706232675,-500.0,0.00021916,2]
[346102973,1734706232684,-500.0,0.00021916,2]
[346102975,1734706232694,-500.0,0.00021916,2]
[346102977,1734706232706,-500.0,0.00021916,2]
[346102980,1734706232717,-500.0,0.00021916,2]
[346102982,1734706232730,-522.92,0.00021917,6]
[346102984,1734706232742,-165.27839552,0.00021917,6]
[346102987,1734706232754,-503.06856182,0.00021917,6]
[346102989,1734706232766,-205.68,0.00021917,6]
[346102991,1734706232779,-504.28970838,0.00021917,6]
[346102993,1734706232789,-875.1,0.00021917,7]
[346102995,1734706232799,-500.0,0.00021917,6]
[346102997,1734706232811,-500.0,0.00021917,6]
[346103000,1734706232823,-500.0,0.00021917,6]
[346103002,1734706232834,-500.0,0.00021917,6]
[346103004,1734706232845,-500.0,0.00021917,6]
[346103006,1734706232856,-500.0,0.00021917,6]
[346103008,1734706232867,-500.0,0.00021917,6]
[346103010,1734706232877,-500.0,0.00021917,6]
[346103013,1734706232888,-500.0,0.00021917,6]
[346103015,1734706232899,-500.0,0.00021917,6]
[346103017,1734706232910,-500.0,0.00021917,6]
[346103018,1734706232921,-500.0,0.00021917,6]
[346103019,1734706232933,-557.78246746,0.00021917,6]
[346103021,1734706232944,-500.0,0.00021917,6]
[346103024,1734706232955,-500.0,0.00021917,6]
[346103026,1734706232967,-510.71449282,0.00021917,6]
[346103028,1734706232979,-500.0,0.00021917,6]
[346103030,1734706232990,-500.0,0.00021917,6]
[346103032,1734706233000,-500.0,0.00021917,6]
[346103035,1734706233012,-652.78,0.00021917,6]
[346103037,1734706233025,-500.0,0.00021917,6]
[346103039,1734706233036,-500.0,0.00021917,6]
[346103041,1734706233047,-501.63577985,0.00021917,6]
[346103043,1734706233061,-628.02,0.00021917,6]
[346103045,1734706233072,-502.19704037,0.00021917,6]
[346103048,1734706233083,-501.57189217,0.00021917,6]
[346103050,1734706233096,-500.0,0.00021917,6]
[346103052,1734706233108,-502.61672482,0.00021917,6]
[346103054,1734706233120,-311.54508013,0.00021917,6]
[346103056,1734706233132,-500.0,0.00021917,6]
[346103058,1734706233143,-501.15994984,0.00021917,6]
[346103060,1734706233154,-500.0,0.00021917,6]
[346103063,1734706233165,-500.0,0.00021917,6]
[346103064,1734706233175,-500.0,0.00021917,6]
[346103066,1734706233186,-501.28213865,0.00021917,6]
[346103068,1734706233197,-501.90142945,0.00021917,6]
[346103070,1734706233208,-500.0,0.00021917,6]
[346103071,1734706233220,-500.0,0.00021917,6]
[346103072,1734706233232,-500.0,0.00021917,6]
[346103074,1734706233243,-503.81652093,0.00021917,6]
[346103075,1734706233255,-500.0,0.00021917,6]
[346103076,1734706233266,-500.0,0.00021917,6]
[346103078,1734706233282,-500.0,0.00021917,6]
[346103080,1734706233294,-500.0,0.00021917,6]
[346103082,1734706233307,-507.66814695,0.00021917,6]
[346103084,1734706233319,-500.0,0.00021917,6]
[346103086,1734706233330,-500.0,0.00021917,6]
[346103088,1734706233342,-500.0,0.00021917,6]
[346103091,1734706233354,-500.0,0.00021917,6]
[346103093,1734706233365,-500.0,0.00021917,6]
[346103095,1734706233377,-503.12945603,0.00021917,6]
[346103097,1734706233389,-500.0,0.00021917,6]
[346103099,1734706233401,-500.0,0.00021917,6]
[346103101,1734706233414,-500.0,0.00021917,6]
[346103103,1734706233426,-1005.36119311,0.00021917,6]
[346103106,1734706233437,-500.0,0.00021917,6]
[346103108,1734706233447,-500.0,0.00021917,6]
[346103110,1734706233458,-501.85673522,0.00021917,6]
[346103112,1734706233467,-446.89264965,0.00021917,6]
[346103114,1734706233478,-500.0,0.00021917,6]
[346103116,1734706233489,-500.0,0.00021917,6]
[346103118,1734706233500,-502.28983042,0.00021917,6]
[346103120,1734706233511,-500.0,0.00021917,6]
[346103122,1734706233525,-442.93540027,0.00021917,6]
[346103124,1734706233543,-58.37004665,0.00021917,6]
[346103126,1734706233555,-503.22421928,0.00021917,6]
[346103128,1734706233566,-500.0,0.00021917,6]
[346103130,1734706233578,-502.91956897,0.00021917,6]
[346103132,1734706233589,-505.58970238,0.00021917,6]
[346103134,1734706233599,-502.35905092,0.00021917,6]
[346103136,1734706233610,-502.41899245,0.00021917,6]
[346103138,1734706233621,-603.22768236,0.00021917,6]
[346103140,1734706233633,-520.94092734,0.00021917,6]
[346103142,1734706233646,-500.0,0.00021917,6]
[346103144,1734706233658,-501.49118778,0.00021917,6]
[346103146,1734706233669,-501.42068149,0.00021917,6]
[346103148,1734706233680,-500.0,0.00021917,6]
[346103150,1734706233693,-500.0,0.00021917,6]
[346103152,1734706233704,-500.0,0.00021917,6]
[346103154,1734706233714,-500.0,0.00021917,6]
[346103156,1734706233727,-502.90720265,0.00021917,6]
[346103159,1734706233738,-501.63478197,0.00021917,6]
[346103160,1734706233748,-500.0,0.00021917,6]
[346103163,1734706233759,-500.0,0.00021917,6]
[346103165,1734706233774,-500.0,0.00021917,6]
[346103167,1734706233785,-500.0,0.00021917,6]
[346103169,1734706233795,-501.97482005,0.00021917,6]
[346103171,1734706233806,-502.71894693,0.00021917,6]
[346103173,1734706233817,-500.0,0.00021917,6]
[346103175,1734706233828,-501.32384876,0.00021917,6]
[346103177,1734706233838,-501.10580814,0.00021917,6]
[346103179,1734706233848,-502.51615686,0.00021917,6]
[346103181,1734706233859,-500.0,0.00021917,6]
[346103183,1734706233870,-506.17908327,0.00021917,6]
[346103185,1734706233880,-501.37276428,0.00021917,6]
[346103187,1734706233891,-500.0,0.00021917,6]
[346103189,1734706233901,-499.68147212,0.00021917,6]
[346103191,1734706233911,-500.0,0.00021917,6]
[346103193,1734706233921,-500.0,0.00021917,6]
[346103195,1734706233931,-500.0,0.00021917,6]
[346103197,1734706233941,-500.0,0.00021917,6]
[346103199,1734706233952,-500.0,0.00021917,6]
[346103201,1734706233962,-163.65763377,0.00021917,6]
[346103278,1734706238076,-336.34236623,0.00021917,6]
[346103281,1734706238087,-500.0,0.00021917,6]
[346103283,1734706238098,-500.0,0.00021917,6]
[346103285,1734706238108,-502.49987769,0.00021917,6]
[346103287,1734706238119,-500.0,0.00021917,6]
[346103289,1734706238130,-500.0,0.00021917,6]
[346103291,1734706238140,-47.42427201,0.00021917,6]
[346103295,1734706238165,-452.57572799,0.00021917,6]
[346103297,1734706238175,-500.0,0.00021917,6]
[346103299,1734706238186,-441.61156351,0.00021917,6]
[346103510,1734706240110,-58.38843649,0.00021917,6]
[346103513,1734706240121,-503.081395,0.00021917,6]
[346103515,1734706240132,-500.0,0.00021917,6]
[346103517,1734706240143,-215.36364777,0.00021917,6]
[346103519,1734706240153,-505.34516855,0.00021917,6]
[346103521,1734706240163,-500.0,0.00021917,6]
[346103523,1734706240174,-601.05130368,0.00021917,6]
[346103526,1734706240184,-500.0,0.00021917,6]
[346103529,1734706240194,-502.4996419,0.00021917,6]
[346103530,1734706240204,-500.0,0.00021917,6]
[346103531,1734706240214,-500.0,0.00021917,6]
[346103532,1734706240225,-530.06576934,0.00021917,6]
[346103533,1734706240235,-522.76198356,0.00021917,6]
[346103534,1734706240246,-196.44265371,0.00021917,6]
[346103560,1734706240541,-303.55734629,0.00021917,6]
[346103562,1734706240556,-500.0,0.00021917,6]
[346103564,1734706240566,-500.0,0.00021917,6]
[346103566,1734706240576,-500.0,0.00021917,6]
[346103568,1734706240585,-500.0,0.00021917,6]
[346103570,1734706240596,-500.0,0.00021917,6]
[346103572,1734706240606,-501.89887644,0.00021917,6]
[346103574,1734706240616,-34.24377727,0.00021917,6]
[346103822,1734706243024,-254.5649608,0.00021917,6]
[346103832,1734706243112,-211.19126193,0.00021917,6]
[346103835,1734706243125,-500.0,0.00021917,6]
[346103837,1734706243135,-500.0,0.00021917,6]
[346103839,1734706243145,-1089.39,0.00021917,6]
[346103841,1734706243155,-500.0,0.00021917,6]
[346103843,1734706243165,-1535.49,0.00021917,6]
[346103845,1734706243175,-500.0,0.00021917,6]
[346103847,1734706243185,-1710.39,0.00021917,6]
[346103849,1734706243195,-500.0,0.00021917,6]
[346103851,1734706243204,-500.0,0.00021917,6]
[346103853,1734706243215,-168.02235806,0.00021917,6]
[346103855,1734706243225,-500.0,0.00021917,6]
[346103857,1734706243235,-502.65558615,0.00021917,6]
[346103859,1734706243245,-500.0,0.00021917,6]
[346103861,1734706243254,-500.0,0.00021917,6]
[346103863,1734706243264,-500.0,0.00021917,6]
[346103865,1734706243274,-1257.81,0.00021917,6]
[346103867,1734706243283,-500.0,0.00021917,6]
[346103869,1734706243293,-500.0,0.00021917,6]
[346103871,1734706243302,-500.0,0.00021917,6]
[346103873,1734706243312,-500.0,0.00021917,6]
[346103875,1734706243322,-500.0,0.00021917,6]
[346103877,1734706243332,-501.79136905,0.00021917,6]
[346103879,1734706243341,-500.0,0.00021917,6]
[346103881,1734706243351,-500.0,0.00021917,6]
[346103883,1734706243361,-500.0,0.00021917,6]
[346103885,1734706243372,-500.0,0.00021917,6]
[346103887,1734706243381,-500.0,0.00021917,6]
[346103889,1734706243392,-500.0,0.00021917,2]
[346103891,1734706243401,-500.0,0.00021917,6]
[346103893,1734706243411,-500.0,0.00021917,6]
[346103895,1734706243421,-500.0,0.00021917,6]
[346103897,1734706243431,-500.0,0.00021917,6]
[346103899,1734706243440,-500.0,0.00021917,6]
[346103902,1734706243450,-502.16283856,0.00021917,6]
[346103903,1734706243460,-500.0,0.00021917,6]
[346103906,1734706243470,-200.0,0.00021917,6]
[346103908,1734706243479,-500.0,0.00021917,6]
[346103910,1734706243489,-500.0,0.00021917,6]
[346103911,1734706243499,-500.0,0.00021917,6]
[346103914,1734706243508,-507.99,0.00021917,6]
[346103915,1734706243517,-503.40731804,0.00021917,6]
[346103917,1734706243528,-500.0,0.00021917,6]
[346103919,1734706243538,-197.62874935,0.00021917,6]
[346103923,1734706243548,-500.0,0.00021917,6]
[346103926,1734706243558,-500.0,0.00021917,6]
[346103928,1734706243568,-500.0,0.00021917,6]
[346103932,1734706243578,-500.0,0.00021917,6]
[346103935,1734706243588,-500.0,0.00021917,6]
[346103937,1734706243599,-502.64208422,0.00021917,6]
[346103940,1734706243609,-500.0,0.00021917,6]
[346103943,1734706243619,-502.37418458,0.00021917,6]
[346103945,1734706243628,-500.0,0.00021917,6]
[346103948,1734706243638,-560.75290192,0.00021917,6]
[346103951,1734706243650,-500.0,0.00021917,6]
[346103953,1734706243661,-500.0,0.00021917,6]
[346103956,1734706243670,-525.1,0.00021917,6]
[346103958,1734706243681,-500.0,0.00021917,6]
[346103960,1734706243691,-500.0,0.00021917,6]
[346103962,1734706243703,-500.0,0.00021917,6]
[346103964,1734706243713,-1735.48,0.00021917,2]
[346103966,1734706243722,-500.0,0.00021917,6]
[346103968,1734706243733,-500.0,0.00021917,6]
[346103970,1734706243743,-500.0,0.00021917,6]
[346103972,1734706243753,-500.0,0.00021917,6]
[346103974,1734706243762,-501.32744387,0.00021917,6]
[346103976,1734706243772,-1309.3,0.00021917,6]
[346103978,1734706243784,-503.7810491,0.00021917,6]
[346103980,1734706243793,-500.0,0.00021917,6]
[346103982,1734706243803,-500.0,0.00021917,6]
[346103984,1734706243813,-500.0,0.00021917,6]
[346103986,1734706243823,-500.0,0.00021917,6]
[346103988,1734706243832,-500.0,0.00021917,6]
[346103990,1734706243842,-503.62908198,0.00021917,6]
[346103992,1734706243852,-619.03020251,0.00021917,6]
[346103994,1734706243861,-500.0,0.00021917,6]
[346103996,1734706243871,-500.0,0.00021917,6]
[346103998,1734706243880,-847.08,0.00021917,6]
[346104000,1734706243890,-500.0,0.00021917,6]
[346104002,1734706243901,-502.93897804,0.00021917,6]
[346104004,1734706243911,-569.6,0.00021917,6]
[346104006,1734706243921,-503.66761403,0.00021917,6]
[346104008,1734706243930,-500.0,0.00021917,6]
[346104010,1734706243940,-340.97740866,0.00021917,6]
[346104012,1734706243950,-500.0,0.00021917,6]
[346104014,1734706243959,-6237.22,0.00021917,6]
[346104016,1734706243968,-603.86,0.00021917,6]
[346104018,1734706243978,-503.51,0.00021917,6]
[346104020,1734706243987,-648.56,0.00021917,6]
[346104022,1734706243997,-503.51127022,0.00021917,6]
[346104024,1734706244007,-500.0,0.00021917,6]
[346104026,1734706244016,-551.0,0.00021917,6]
[346104028,1734706244026,-642.43,0.00021917,6]
[346104030,1734706244036,-500.0,0.00021917,6]
[346104032,1734706244045,-500.0,0.00021917,6]
[346104034,1734706244054,-500.0,0.00021917,6]
[346104036,1734706244064,-528.01679158,0.00021917,6]
[346104038,1734706244073,-500.0,0.00021917,6]
[346104040,1734706244083,-500.0,0.00021917,6]
[346104042,1734706244093,-310.86300568,0.00021917,6]
[346104044,1734706244103,-500.0,0.00021917,6]
[346104046,1734706244113,-500.0,0.00021917,6]
[346104048,1734706244122,-500.0,0.00021917,6]
[346104050,1734706244132,-505.87702639,0.00021917,6]
[346104052,1734706244142,-500.0,0.00021917,6]
[346104054,1734706244152,-746.8125,0.00022,2]
[346104056,1734706244162,-432.0,0.00022,9]
[346104058,1734706244172,-187.864602,0.00022129,2]
[346104060,1734706244181,-500.0,0.00022191,6]
[346104062,1734706244191,-500.0,0.00022191,6]
[346104064,1734706244200,-500.0,0.00022191,6]
[346104066,1734706244209,-500.0,0.00022191,6]
[346104068,1734706244218,-500.0,0.00022191,6]
[346104070,1734706244228,-500.0,0.00022191,6]
[346104072,1734706244238,-500.0,0.00022191,6]
[346104074,1734706244247,-500.0,0.00022191,6]
[346104076,1734706244257,-652.78,0.00022191,6]
[346104078,1734706244267,-439.3,0.00022191,6]
[346104080,1734706244279,-500.0,0.00022191,6]
[346104082,1734706244289,-500.0,0.00022191,6]
[346104084,1734706244299,-500.0,0.00022191,6]
[346104087,1734706244310,-500.0,0.00022191,6]
[346104088,1734706244319,-500.0,0.00022191,6]
[346104091,1734706244329,-500.0,0.00022191,6]
[346104092,1734706244338,-500.0,0.00022191,6]
[346104094,1734706244348,-500.0,0.00022191,6]
[346104096,1734706244358,-500.0,0.00022191,6]
[346104099,1734706244367,-500.0,0.00022191,6]
[346104100,1734706244377,-522.23,0.00022191,6]
[346104103,1734706244387,-500.0,0.00022191,6]
[346104104,1734706244397,-562.29908351,0.00022191,6]
[346104106,1734706244406,-500.0,0.00022191,6]
[346104109,1734706244416,-500.0,0.00022191,6]
[346104111,1734706244426,-500.0,0.00022191,6]
[346104112,1734706244435,-500.0,0.00022191,6]
[346104115,1734706244445,-500.0,0.00022191,6]
[346104116,1734706244454,-500.0,0.00022191,6]
[346104118,1734706244464,-500.0,0.00022191,6]
[346104121,1734706244474,-500.0,0.00022191,6]
[346104123,1734706244483,-500.0,0.00022191,6]
[346104125,1734706244494,-1089.39,0.00022191,6]
[346104127,1734706244503,-199.70935872,0.00022191,6]
[346104129,1734706244513,-1535.49,0.00022191,6]
[346104131,1734706244522,-1710.39,0.00022191,6]
[346104133,1734706244533,-1257.81,0.00022191,6]
[346104135,1734706244543,-533.57,0.00022191,6]
[346104137,1734706244552,-500.0,0.00022191,6]
[346104139,1734706244562,-500.0,0.00022191,2]
[346104140,1734706244571,-500.0,0.00022191,6]
[346104142,1734706244581,-500.0,0.00022191,6]
[346104144,1734706244590,-500.0,0.00022191,6]
[346104147,1734706244601,-500.0,0.00022191,6]
[346104149,1734706244616,-500.0,0.00022191,6]
[346104150,1734706244625,-500.0,0.00022191,6]
[346104153,1734706244638,-247.66,0.00022191,6]
[346104155,1734706244647,-638.27,0.00022191,6]
[346104157,1734706244660,-273.01,0.00022191,6]
[346104159,1734706244670,-500.0,0.00022191,6]
[346104161,1734706244680,-500.0,0.00022191,6]
[346104163,1734706244690,-594.82,0.00022191,6]
[346104165,1734706244700,-500.0,0.00022191,6]
[346104167,1734706244710,-1309.3,0.00022191,6]
[346104169,1734706244720,-500.0,0.00022191,6]
[346104171,1734706244731,-500.0,0.00022191,6]
[346104173,1734706244741,-500.0,0.00022191,6]
[346104175,1734706244751,-500.0,0.00022191,6]
[346104177,1734706244760,-847.08,0.00022191,6]
[346104179,1734706244770,-500.0,0.00022191,6]
[346104181,1734706244780,-187.8550784,0.00022191,6]
[346104183,1734706244790,-500.0,0.00022191,6]
[346104185,1734706244800,-6237.22,0.00022191,6]
[346104187,1734706244811,-603.86,0.00022191,6]
[346104189,1734706244820,-503.51,0.00022191,6]
[346104191,1734706244830,-500.0,0.00022191,6]
[346104193,1734706244839,-642.43,0.00022191,6]
[346104195,1734706244850,-280.14,0.00022191,6]
[346104197,1734706244860,-500.0,0.00022191,6]
[346104199,1734706244871,-192.0,0.00022191,6]
[346104201,1734706244880,-500.0,0.00022191,6]
[346104203,1734706244890,-500.0,0.00022191,6]
[346104205,1734706244899,-500.0,0.00022191,6]
[346104207,1734706244909,-280.91319224,0.0002222,2]
[346104209,1734706244918,-8536.8147938,0.0002224,2]
[346104211,1734706244928,-500.0,0.0002238,2]
[346104213,1734706244937,-500.0,0.00022425,2]
[346104214,1734706244946,-500.0,0.00022425,2]
[346104217,1734706244956,-1000.0,0.00022464,2]
[346104218,1734706244965,-515.39350899,0.00022464,2]
[346104220,1734706244975,-205.47563208,0.00022464,2]
[346104223,1734706244985,-225.3820103,0.00022464,2]
[346104225,1734706244994,-500.0,0.00022465,6]
[346104227,1734706245004,-500.0,0.00022465,6]
[346104229,1734706245014,-500.0,0.00022465,6]
[346104231,1734706245026,-257.52,0.00022465,6]
[346104233,1734706245035,-500.0,0.00022465,6]
[346104235,1734706245045,-500.0,0.00022465,6]
[346104237,1734706245055,-652.78,0.00022465,6]
[346104239,1734706245065,-500.0,0.00022465,6]
[346104241,1734706245076,-500.0,0.00022465,6]
[346104243,1734706245086,-500.0,0.00022465,6]
[346104245,1734706245096,-500.0,0.00022465,6]
[346104247,1734706245106,-500.0,0.00022465,6]
[346104249,1734706245116,-500.0,0.00022465,6]
[346104251,1734706245126,-500.0,0.00022465,6]
[346104253,1734706245136,-500.0,0.00022465,6]
[346104255,1734706245145,-500.0,0.00022465,6]
[346104257,1734706245155,-500.0,0.00022465,6]
[346104259,1734706245164,-393.64038483,0.00022465,6]
[346104261,1734706245174,-500.0,0.00022465,6]
[346104263,1734706245184,-1089.39,0.00022465,6]
[346104265,1734706245194,-1535.49,0.00022465,6]
[346104267,1734706245204,-1710.39,0.00022465,6]
[346104269,1734706245215,-1257.81,0.00022465,6]
[346104271,1734706245225,-500.0,0.00022465,6]
[346104273,1734706245235,-500.0,0.00022465,6]
[346104275,1734706245245,-500.0,0.00022465,2]
[346104277,1734706245255,-500.0,0.00022465,6]
[346104279,1734706245266,-500.0,0.00022465,6]
[346104281,1734706245277,-500.0,0.00022465,6]
[346104283,1734706245287,-179.09,0.00022465,6]
[346104285,1734706245298,-500.0,0.00022465,6]
[346104287,1734706245309,-348.94,0.00022465,6]
[346104289,1734706245319,-1309.3,0.00022465,6]
[346104291,1734706245330,-500.0,0.00022465,6]
[346104293,1734706245339,-500.0,0.00022465,6]
[346104295,1734706245350,-364.01,0.00022465,6]
[346104297,1734706245360,-847.08,0.00022465,6]
[346104301,1734706245370,-522.14,0.00022465,6]
[346104303,1734706245380,-424.04,0.00022465,6]
[346104305,1734706245391,-6237.22,0.00022465,6]
[346104306,1734706245401,-603.86,0.00022465,6]
[346104307,1734706245412,-503.51,0.00022465,6]
[346104308,1734706245423,-500.0,0.00022465,6]
[346104309,1734706245433,-642.43,0.00022465,6]
[346104310,1734706245443,-500.0,0.00022465,6]
[346104311,1734706245453,-500.0,0.00022465,6]
[346104313,1734706245462,-500.0,0.00022465,6]
[346104315,1734706245472,-500.0,0.00022465,6]
[346104317,1734706245481,-501.01457392,0.00022467,2]
[346104320,1734706245491,-8536.814794,0.00022552,2]
[346104322,1734706245501,-280.91319224,0.00022625,2]
[346104324,1734706245511,-572.65082938,0.00022639,2]
[346104326,1734706245520,-500.0,0.00022739,6]
[346104328,1734706245533,-500.0,0.00022739,6]
[346104330,1734706245545,-500.0,0.00022739,6]
[346104332,1734706245555,-500.0,0.00022739,6]
[346104334,1734706245565,-500.0,0.00022739,6]
[346104336,1734706245575,-652.78,0.00022739,6]
[346104338,1734706245584,-500.0,0.00022739,6]
[346104340,1734706245594,-500.0,0.00022739,6]
[346104342,1734706245604,-500.0,0.00022739,6]
[346104344,1734706245614,-583.19344035,0.00022739,6]
[346104346,1734706245624,-500.0,0.00022739,6]
[346104348,1734706245634,-500.0,0.00022739,6]
[346104350,1734706245643,-500.0,0.00022739,6]
[346104352,1734706245655,-500.0,0.00022739,6]
[346104354,1734706245667,-500.0,0.00022739,6]
[346104357,1734706245676,-500.0,0.00022739,6]
[346104359,1734706245686,-1089.39,0.00022739,6]
[346104361,1734706245696,-1535.49,0.00022739,6]
[346104363,1734706245706,-1710.39,0.00022739,6]
[346104365,1734706245715,-1257.81,0.00022739,6]
[346104367,1734706245724,-500.0,0.00022739,6]
[346104369,1734706245735,-500.0,0.00022739,6]
[346104371,1734706245744,-500.0,0.00022739,2]
[346104373,1734706245754,-500.0,0.00022739,6]
[346104375,1734706245763,-500.0,0.00022739,6]
[346104377,1734706245773,-500.0,0.00022739,6]
[346104379,1734706245784,-10726.47791778,0.00022739,3]
[346104381,1734706245794,-500.0,0.00022739,6]
[346104383,1734706245803,-1309.3,0.00022739,6]
[346104385,1734706245814,-500.0,0.00022739,6]
[346104387,1734706245823,-500.0,0.00022739,6]
[346104389,1734706245832,-847.08,0.00022739,6]
[346104391,1734706245842,-6237.22,0.00022739,6]
[346104393,1734706245851,-603.86,0.00022739,6]
[346104395,1734706245860,-503.51,0.00022739,6]
[346104397,1734706245870,-500.0,0.00022739,6]
[346104399,1734706245879,-642.43,0.00022739,6]
[346104401,1734706245888,-500.0,0.00022739,6]
[346104403,1734706245898,-500.0,0.00022739,6]
[346104405,1734706245907,-500.0,0.00022739,6]
[346104407,1734706245917,-500.0,0.00022739,6]
[346104409,1734706245927,-1000.0,0.00022973,2]
[346104411,1734706245936,-12000.27,0.00023,2]
[346104413,1734706245945,-585.493618,0.00023013,6]
[346104415,1734706245954,-500.0,0.00023013,6]
[346104417,1734706245963,-500.0,0.00023013,6]
[346104419,1734706245973,-500.0,0.00023013,6]
[346104421,1734706245982,-652.78,0.00023013,6]
[346104423,1734706245991,-500.0,0.00023013,6]
[346104425,1734706246001,-500.0,0.00023013,6]
[346104427,1734706246011,-500.0,0.00023013,6]
[346104429,1734706246020,-500.0,0.00023013,6]
[346104432,1734706246033,-251.26130801,0.00023013,6]
[346104433,1734706246042,-500.0,0.00023013,6]
[346104435,1734706246052,-500.0,0.00023013,6]
[346104437,1734706246062,-500.0,0.00023013,6]
[346104439,1734706246071,-500.0,0.00023013,6]
[346104441,1734706246081,-1089.39,0.00023013,6]
[346104444,1734706246091,-1535.49,0.00023013,6]
[346104446,1734706246101,-1710.39,0.00023013,6]
[346104448,1734706246111,-1257.81,0.00023013,6]
[346104450,1734706246121,-500.0,0.00023013,6]
[346104452,1734706246130,-500.0,0.00023013,6]
[346104453,1734706246140,-500.0,0.00023013,2]
[346104472,1734706246304,-617.38,0.00023013,6]
[346104474,1734706246315,-500.0,0.00023013,6]
[346104476,1734706246325,-500.0,0.00023013,6]
[346104478,1734706246335,-500.0,0.00023013,6]
[346104480,1734706246345,-1309.3,0.00023013,6]
[346104482,1734706246355,-500.0,0.00023013,6]
[346104484,1734706246364,-500.0,0.00023013,6]
[346104486,1734706246374,-847.08,0.00023013,6]
[346104488,1734706246385,-6237.22,0.00023013,6]
[346104490,1734706246394,-603.86,0.00023013,6]
[346104492,1734706246404,-503.51,0.00023013,6]
[346104494,1734706246413,-500.0,0.00023013,6]
[346104496,1734706246423,-642.43,0.00023013,6]
[346104498,1734706246434,-251.0155972,0.00023013,6]
[346104500,1734706246444,-500.0,0.00023013,6]
[346104502,1734706246456,-500.0,0.00023013,6]
[346104504,1734706246466,-500.0,0.00023013,6]
[346104507,1734706246476,-280.91319224,0.00023029,2]
[346104509,1734706246486,-268.3214863,0.00023123,2]
[346104511,1734706246495,-572.65082938,0.00023141,2]
[346104513,1734706246505,-214.0101375,0.00023186,2]
[346104515,1734706246514,-875.1,0.00023287,9]
[346104517,1734706246524,-500.0,0.00023287,6]
[346104519,1734706246536,-500.0,0.00023287,6]
[346104521,1734706246546,-500.0,0.00023287,6]
[346104523,1734706246556,-652.78,0.00023287,6]
[346104525,1734706246565,-519.32,0.00023287,6]
[346104527,1734706246575,-500.0,0.00023287,6]
[346104529,1734706246585,-500.0,0.00023287,6]
[346104531,1734706246594,-500.0,0.00023287,6]
[346104533,1734706246603,-500.0,0.00023287,6]
[346104535,1734706246613,-500.0,0.00023287,6]
[346104537,1734706246624,-500.0,0.00023287,6]
[346104539,1734706246633,-500.0,0.00023287,6]
[346104541,1734706246643,-1089.39,0.00023287,6]
[346104543,1734706246657,-1535.49,0.00023287,6]
[346104545,1734706246666,-1710.39,0.00023287,6]
[346104547,1734706246676,-1257.81,0.00023287,6]
[346104549,1734706246686,-500.0,0.00023287,6]
[346104551,1734706246696,-500.0,0.00023287,6]
[346104553,1734706246706,-500.0,0.00023287,2]